[Event "Live Chess"]
[Site "Chess.com"]
[Date "2024.06.01"]
[Round "-"]
[White "MagnersCarlsberg2870"]
[Black "educatedlad"]
[Result "1-0"]
[WhiteElo "1779"]
[BlackElo "1706"]
[TimeControl "300"]
[EndTime "14:16:40 PDT"]
[Termination "MagnersCarlsberg2870 won by checkmate"]

1. d4 {[%clk 0:04:56.9]} 1... Nf6 {[%clk 0:04:59.9]} 2. Nf3 {[%clk 0:04:55.7]}
2... g6 {[%clk 0:04:58.5]} 3. Nc3 {[%clk 0:04:54.8]} 3... d5 {[%clk 0:04:58.4]}
4. Bf4 {[%clk 0:04:52.9]} 4... Bg7 {[%clk 0:04:57.4]} 5. Qd2 {[%clk 0:04:51.6]}
5... O-O {[%clk 0:04:56]} 6. h4 {[%clk 0:04:50.7]} 6... Nh5 {[%clk 0:04:54.7]}
7. Bg5 {[%clk 0:04:48.8]} 7... f6 {[%clk 0:04:52.6]} 8. Bh6 {[%clk 0:04:47.7]}
8... Nd7 {[%clk 0:04:48.4]} 9. Bxg7 {[%clk 0:04:46.6]} 9... Nxg7 {[%clk
0:04:47.2]} 10. g4 {[%clk 0:04:45.4]} 10... e5 {[%clk 0:04:45.2]} 11. h5 {[%clk
0:04:43.6]} 11... exd4 {[%clk 0:04:43.2]} 12. Qxd4 {[%clk 0:04:39.4]} 12... Ne6
{[%clk 0:04:38.4]} 13. Qxd5 {[%clk 0:04:33.1]} 13... Nb6 {[%clk 0:04:37.9]} 14.
Qxd8 {[%clk 0:04:30.3]} 14... Rxd8 {[%clk 0:04:37.5]} 15. hxg6 {[%clk
0:04:28.2]} 15... hxg6 {[%clk 0:04:37.4]} 16. e3 {[%clk 0:04:23.3]} 16... Bd7
{[%clk 0:04:21.1]} 17. a4 {[%clk 0:04:20.1]} 17... Bc6 {[%clk 0:04:20.1]} 18.
Bg2 {[%clk 0:04:16.1]} 18... Ng5 {[%clk 0:04:18.5]} 19. Ke2 {[%clk 0:03:59.3]}
19... Nc4 {[%clk 0:04:00.2]} 20. Rh6 {[%clk 0:03:57.3]} 20... Kg7 {[%clk
0:03:58.5]} 21. Rah1 {[%clk 0:03:55.6]} 21... Ne5 {[%clk 0:03:52.3]} 22. Nxg5
{[%clk 0:03:51.9]} 22... fxg5 {[%clk 0:03:48.8]} 23. Rh7+ {[%clk 0:03:50.8]}
23... Kf6 {[%clk 0:03:47.4]} 24. Bxc6 {[%clk 0:03:48.5]} 24... Nxc6 {[%clk
0:03:45.4]} 25. Ne4+ {[%clk 0:03:47.5]} 25... Ke5 {[%clk 0:03:43.2]} 26. Nxg5
{[%clk 0:03:44]} 26... Kf6 {[%clk 0:03:41.8]} 27. Ne4+ {[%clk 0:03:37.1]} 27...
Ke5 {[%clk 0:03:40.9]} 28. Nc3 {[%clk 0:03:21.8]} 28... Nb4 {[%clk 0:03:39]} 29.
Rxc7 {[%clk 0:03:19]} 29... Nxc2 {[%clk 0:03:37.3]} 30. Rhh7 {[%clk 0:03:17.6]}
30... Nb4 {[%clk 0:03:30.4]} 31. f4+ {[%clk 0:03:14.6]} 31... Kf6 {[%clk
0:03:28.7]} 32. Rhf7+ {[%clk 0:03:10]} 32... Ke6 {[%clk 0:03:27.9]} 33. g5
{[%clk 0:02:59.5]} 33... Rac8 {[%clk 0:03:23.4]} 34. Rf6# {[%clk 0:02:58.1]} 1-0

[Event "Live Chess"]
[Site "Chess.com"]
[Date "2024.06.01"]
[Round "-"]
[White "CarmelJane"]
[Black "AnotherOneBadPlayer"]
[Result "0-1"]
[WhiteElo "2087"]
[BlackElo "2215"]
[TimeControl "300"]
[EndTime "14:17:04 PDT"]
[Termination "AnotherOneBadPlayer won by resignation"]

1. e4 {[%clk 0:04:56.2]} 1... e6 {[%clk 0:04:57.8]} 2. d4 {[%clk 0:04:52.6]}
2... d5 {[%clk 0:04:57.1]} 3. Nd2 {[%clk 0:04:50.2]} 3... Nf6 {[%clk 0:04:55.5]}
4. e5 {[%clk 0:04:48.9]} 4... Nfd7 {[%clk 0:04:54.1]} 5. f4 {[%clk 0:04:48.5]}
5... c5 {[%clk 0:04:52.7]} 6. c3 {[%clk 0:04:46.5]} 6... Nc6 {[%clk 0:04:51.7]}
7. Ndf3 {[%clk 0:04:46.1]} 7... Qb6 {[%clk 0:04:45.5]} 8. a3 {[%clk 0:04:44.7]}
8... a5 {[%clk 0:04:42.9]} 9. b3 {[%clk 0:04:42.8]} 9... Be7 {[%clk 0:04:28.6]}
10. h4 {[%clk 0:04:40.2]} 10... O-O {[%clk 0:04:26.5]} 11. h5 {[%clk 0:04:37.8]}
11... h6 {[%clk 0:04:21.3]} 12. Nh3 {[%clk 0:04:32.2]} 12... f6 {[%clk
0:04:18.3]} 13. Bd3 {[%clk 0:04:25.7]} 13... fxe5 {[%clk 0:04:07.3]} 14. fxe5
{[%clk 0:04:24.1]} 14... cxd4 {[%clk 0:03:41.1]} 15. cxd4 {[%clk 0:04:18.8]}
15... Rxf3 {[%clk 0:03:36]} 16. gxf3 {[%clk 0:04:13.9]} 16... Qxd4 {[%clk
0:03:31.2]} 17. Bxh6 {[%clk 0:04:05.3]} 17... Qxe5+ {[%clk 0:03:20]} 18. Kf1
{[%clk 0:03:56]} 18... gxh6 {[%clk 0:03:11.4]} 19. Qd2 {[%clk 0:03:54.2]} 19...
Qxa1+ {[%clk 0:03:03.4]} 20. Kg2 {[%clk 0:03:51.2]} 20... Qf6 {[%clk 0:02:55.4]}
21. Nf4 {[%clk 0:03:43.4]} 21... Bd6 {[%clk 0:02:36.1]} 22. Ng6 {[%clk
0:03:25.8]} 22... Qg5+ {[%clk 0:02:32.5]} 23. Qxg5 {[%clk 0:03:24.6]} 23... hxg5
{[%clk 0:02:31.3]} 24. h6 {[%clk 0:03:23.2]} 24... Nf6 {[%clk 0:02:24.1]} 0-1

[Event "Live Chess"]
[Site "Chess.com"]
[Date "2024.06.01"]
[Round "-"]
[White "GEMdzq"]
[Black "Brooms1989"]
[Result "1-0"]
[WhiteElo "2315"]
[BlackElo "1125"]
[TimeControl "300"]
[EndTime "14:17:10 PDT"]
[Termination "GEMdzq won by resignation"]

1. e4 {[%clk 0:04:57.4]} 1... e5 {[%clk 0:04:57.2]} 2. d4 {[%clk 0:04:56.1]}
2... exd4 {[%clk 0:04:51.3]} 3. c3 {[%clk 0:04:55.2]} 3... d5 {[%clk 0:04:48.6]}
4. exd5 {[%clk 0:04:51.7]} 4... Qxd5 {[%clk 0:04:41.7]} 5. cxd4 {[%clk
0:04:50.6]} 5... Nf6 {[%clk 0:04:38.5]} 6. Nc3 {[%clk 0:04:49.6]} 6... Bb4
{[%clk 0:04:35.7]} 7. Bd2 {[%clk 0:04:47.1]} 7... Bxc3 {[%clk 0:04:29.3]} 8.
Bxc3 {[%clk 0:04:45.9]} 8... O-O {[%clk 0:04:28.5]} 9. Nf3 {[%clk 0:04:44.6]}
9... Re8+ {[%clk 0:04:26.5]} 10. Be2 {[%clk 0:04:43.7]} 10... Ne4 {[%clk
0:04:20.9]} 11. O-O {[%clk 0:04:41.7]} 11... Nxc3 {[%clk 0:04:18.9]} 12. bxc3
{[%clk 0:04:41.6]} 12... Nd7 {[%clk 0:04:11.1]} 13. c4 {[%clk 0:04:31.4]} 13...
Qe6 {[%clk 0:04:00.3]} 14. Re1 {[%clk 0:04:28.2]} 14... Qf6 {[%clk 0:03:29.9]}
15. Bd3 {[%clk 0:04:22.2]} 15... Rxe1+ {[%clk 0:03:22.7]} 16. Qxe1 {[%clk
0:04:22.1]} 16... g6 {[%clk 0:02:54.7]} 17. Qe8+ {[%clk 0:04:18.6]} 17... Nf8
{[%clk 0:02:52.4]} 18. Re1 {[%clk 0:04:04.9]} 18... Kg7 {[%clk 0:02:46.2]} 19.
h4 {[%clk 0:03:55.9]} 19... Ne6 {[%clk 0:02:35.2]} 20. h5 {[%clk 0:03:44.1]}
20... Ng5 {[%clk 0:02:19.4]} 21. h6+ {[%clk 0:03:41.3]} 21... Kxh6 {[%clk
0:02:09.6]} 22. Qf8+ {[%clk 0:03:40.6]} 22... Kh5 {[%clk 0:02:08]} 23. Nxg5
{[%clk 0:03:32.3]} 23... Qxg5 {[%clk 0:02:05.1]} 24. Be2+ {[%clk 0:03:30.5]}
24... Kh4 {[%clk 0:02:00.5]} 25. g3+ {[%clk 0:03:26.3]} 25... Kh3 {[%clk
0:01:51.9]} 26. Bf1+ {[%clk 0:03:22.7]} 26... Kg4 {[%clk 0:01:42.1]} 27. Re4+
{[%clk 0:03:09]} 27... Kh5 {[%clk 0:01:26.7]} 28. Be2+ {[%clk 0:03:02.3]} 28...
Bg4 {[%clk 0:01:22.9]} 29. Bxg4+ {[%clk 0:03:01.3]} 29... Qxg4 {[%clk
0:01:21.3]} 30. Re5+ {[%clk 0:02:55.7]} 30... g5 {[%clk 0:01:03.9]} 31. Qxf7+
{[%clk 0:02:53.2]} 31... Kh6 {[%clk 0:01:02.1]} 32. Re6+ {[%clk 0:02:49.6]}
32... Qxe6 {[%clk 0:00:56.4]} 33. Qxe6+ {[%clk 0:02:49.5]} 33... Kh5 {[%clk
0:00:54.6]} 34. g4+ {[%clk 0:02:46.9]} 1-0

[Event "Live Chess"]
[Site "Chess.com"]
[Date "2024.06.01"]
[Round "-"]
[White "FlyingChessKestrel13"]
[Black "koekoekoe"]
[Result "1-0"]
[WhiteElo "2077"]
[BlackElo "2010"]
[TimeControl "300"]
[EndTime "14:17:14 PDT"]
[Termination "FlyingChessKestrel13 won by resignation"]

1. e4 {[%clk 0:04:57.4]} 1... d5 {[%clk 0:04:59.9]} 2. e5 {[%clk 0:04:56.2]}
2... c5 {[%clk 0:04:59]} 3. f4 {[%clk 0:04:54]} 3... Nc6 {[%clk 0:04:58.3]} 4.
Nf3 {[%clk 0:04:53.1]} 4... Bf5 {[%clk 0:04:57.8]} 5. d3 {[%clk 0:04:47.5]} 5...
e6 {[%clk 0:04:57.3]} 6. Be2 {[%clk 0:04:45.4]} 6... Nd4 {[%clk 0:04:53.2]} 7.
Nxd4 {[%clk 0:04:42.5]} 7... cxd4 {[%clk 0:04:53.1]} 8. O-O {[%clk 0:04:41.5]}
8... Rc8 {[%clk 0:04:45.4]} 9. g4 {[%clk 0:04:39.3]} 9... Bg6 {[%clk 0:04:38.3]}
10. f5 {[%clk 0:04:38.4]} 10... Qh4 {[%clk 0:04:31.7]} 11. fxg6 {[%clk
0:04:33.3]} 11... hxg6 {[%clk 0:04:31.6]} 12. Bf4 {[%clk 0:04:31]} 12... Ne7
{[%clk 0:04:20.3]} 13. Nd2 {[%clk 0:04:29.2]} 13... Nc6 {[%clk 0:04:14.5]} 14.
Bg3 {[%clk 0:04:27.9]} 14... Qg5 {[%clk 0:04:11]} 15. Nf3 {[%clk 0:04:20.3]}
15... Qd8 {[%clk 0:04:02.1]} 16. Kg2 {[%clk 0:04:16.3]} 16... Be7 {[%clk
0:03:56.3]} 17. c3 {[%clk 0:04:11.6]} 17... dxc3 {[%clk 0:03:54.3]} 18. bxc3
{[%clk 0:04:10.8]} 18... O-O {[%clk 0:03:51.5]} 19. d4 {[%clk 0:04:07.6]} 19...
Qa5 {[%clk 0:03:49.9]} 20. Qd3 {[%clk 0:04:05.3]} 20... Ba3 {[%clk 0:03:44.3]}
21. Rab1 {[%clk 0:04:03.7]} 21... Qc7 {[%clk 0:03:35.7]} 22. Rb3 {[%clk
0:04:02.1]} 22... Be7 {[%clk 0:03:34.3]} 23. h4 {[%clk 0:03:57.8]} 23... Na5
{[%clk 0:03:33.6]} 24. Rb5 {[%clk 0:03:55.2]} 24... Nc4 {[%clk 0:03:29.7]} 25.
h5 {[%clk 0:03:47.3]} 25... gxh5 {[%clk 0:03:23.9]} 26. Rh1 {[%clk 0:03:45.4]}
26... h4 {[%clk 0:03:08.7]} 27. Bxh4 {[%clk 0:03:44]} 27... Bxh4 {[%clk
0:03:05.2]} 28. Rxh4 {[%clk 0:03:42.9]} 28... g6 {[%clk 0:03:03.6]} 29. Rb1
{[%clk 0:03:40.3]} 29... Kg7 {[%clk 0:03:01.4]} 30. Rbh1 {[%clk 0:03:38.9]}
30... Rh8 {[%clk 0:03:01]} 31. Ng5 {[%clk 0:03:30.6]} 31... Rxh4 {[%clk
0:02:54.3]} 32. Rxh4 {[%clk 0:03:29]} 32... Rh8 {[%clk 0:02:54]} 33. Rxh8 {[%clk
0:03:27.3]} 33... Kxh8 {[%clk 0:02:53.9]} 34. Qh3+ {[%clk 0:03:25.9]} 34... Kg7
{[%clk 0:02:49.6]} 35. Qh7+ {[%clk 0:03:24.7]} 35... Kf8 {[%clk 0:02:49.2]} 36.
Qh8+ {[%clk 0:03:21.3]} 36... Ke7 {[%clk 0:02:46.1]} 37. Qf6+ {[%clk 0:03:20.9]}
37... Ke8 {[%clk 0:02:42.9]} 38. Bxc4 {[%clk 0:03:19.6]} 38... dxc4 {[%clk
0:02:40.4]} 39. d5 {[%clk 0:03:15.1]} 39... exd5 {[%clk 0:02:37.3]} 40. e6
{[%clk 0:03:14.4]} 40... fxe6 {[%clk 0:02:32.4]} 41. Qxg6+ {[%clk 0:03:13.2]}
41... Kd8 {[%clk 0:02:29.7]} 42. Nxe6+ {[%clk 0:03:11.8]} 1-0

[Event "Live Chess"]
[Site "Chess.com"]
[Date "2024.06.01"]
[Round "-"]
[White "AndyJWise"]
[Black "Tushinskiy"]
[Result "0-1"]
[WhiteElo "1045"]
[BlackElo "2279"]
[TimeControl "300"]
[EndTime "14:17:33 PDT"]
[Termination "Tushinskiy won by resignation"]

1. d4 {[%clk 0:04:56.7]} 1... d5 {[%clk 0:04:56.5]} 2. c4 {[%clk 0:04:55.2]}
2... c6 {[%clk 0:04:56.4]} 3. Nc3 {[%clk 0:04:53.7]} 3... Nf6 {[%clk 0:04:55.1]}
4. h3 {[%clk 0:04:49.6]} 4... e6 {[%clk 0:04:50.2]} 5. Nf3 {[%clk 0:04:48.1]}
5... Bd6 {[%clk 0:04:49]} 6. Bg5 {[%clk 0:04:44.8]} 6... Nbd7 {[%clk 0:04:48.1]}
7. cxd5 {[%clk 0:04:39.2]} 7... exd5 {[%clk 0:04:41]} 8. e3 {[%clk 0:04:36.3]}
8... Qb6 {[%clk 0:04:38.1]} 9. Bxf6 {[%clk 0:04:27]} 9... Nxf6 {[%clk
0:04:36.2]} 10. Ne5 {[%clk 0:04:24]} 10... Qxb2 {[%clk 0:04:34.1]} 11. Qc1
{[%clk 0:04:19.3]} 11... Ba3 {[%clk 0:04:31.2]} 12. Rb1 {[%clk 0:04:09.5]} 12...
Qxc1+ {[%clk 0:04:29]} 13. Rxc1 {[%clk 0:04:05.1]} 13... Bxc1 {[%clk 0:04:28.9]}
14. Bd3 {[%clk 0:03:58.7]} 14... Bb2 {[%clk 0:04:24.2]} 15. Na4 {[%clk
0:03:53.5]} 15... Ba3 {[%clk 0:04:23.2]} 16. O-O {[%clk 0:03:51.1]} 16... Be6
{[%clk 0:04:20.2]} 17. Nc5 {[%clk 0:03:48.6]} 17... Bxc5 {[%clk 0:04:18.3]} 18.
dxc5 {[%clk 0:03:47.7]} 18... Nd7 {[%clk 0:04:18.2]} 19. Nxd7 {[%clk 0:03:45.9]}
19... Kxd7 {[%clk 0:04:18.1]} 20. Rb1 {[%clk 0:03:43.8]} 20... Kc7 {[%clk
0:04:17.5]} 21. a4 {[%clk 0:03:41.3]} 21... g6 {[%clk 0:04:17.4]} 22. f4 {[%clk
0:03:38.8]} 22... Rhd8 {[%clk 0:04:17.3]} 23. g4 {[%clk 0:03:37.2]} 23... f5
{[%clk 0:04:16.2]} 24. gxf5 {[%clk 0:03:33.2]} 24... Bxf5 {[%clk 0:04:16.1]} 25.
Bxf5 {[%clk 0:03:32.3]} 25... gxf5 {[%clk 0:04:16]} 26. Kf2 {[%clk 0:03:31.8]}
26... d4 {[%clk 0:04:15.8]} 27. exd4 {[%clk 0:03:30.3]} 27... Rxd4 {[%clk
0:04:15.7]} 28. Ke3 {[%clk 0:03:28.7]} 28... Rad8 {[%clk 0:04:15.5]} 29. Rb3
{[%clk 0:03:25]} 29... Re4+ {[%clk 0:04:14.4]} 30. Kf3 {[%clk 0:03:23.5]} 30...
Rdd4 {[%clk 0:04:14.3]} 0-1

[Event "Live Chess"]
[Site "Chess.com"]
[Date "2024.06.01"]
[Round "-"]
[White "oscalik"]
[Black "WelshTiger"]
[Result "1/2-1/2"]
[WhiteElo "2328"]
[BlackElo "2516"]
[TimeControl "300"]
[EndTime "14:17:35 PDT"]
[Termination "Game drawn by repetition"]

1. e4 {[%clk 0:04:55.8]} 1... c6 {[%clk 0:04:57.7]} 2. Nc3 {[%clk 0:04:53.7]}
2... d5 {[%clk 0:04:57.6]} 3. Qf3 {[%clk 0:04:52.8]} 3... dxe4 {[%clk 0:04:55]}
4. Nxe4 {[%clk 0:04:52.3]} 4... Nf6 {[%clk 0:04:54.4]} 5. b3 {[%clk 0:04:50.6]}
5... Nxe4 {[%clk 0:04:50.7]} 6. Qxe4 {[%clk 0:04:49.4]} 6... Qd5 {[%clk
0:04:50.4]} 7. Qe3 {[%clk 0:04:45.8]} 7... Bf5 {[%clk 0:04:42.5]} 8. Bb2 {[%clk
0:04:34.3]} 8... Bxc2 {[%clk 0:04:35]} 9. d3 {[%clk 0:04:30.9]} 9... a5 {[%clk
0:04:23.4]} 10. Qd2 {[%clk 0:04:09]} 10... Bxb3 {[%clk 0:04:21.8]} 11. axb3
{[%clk 0:04:07.8]} 11... Qxb3 {[%clk 0:04:21.7]} 12. Nf3 {[%clk 0:04:02.9]}
12... a4 {[%clk 0:04:15]} 13. Qc3 {[%clk 0:03:53]} 13... Qxc3+ {[%clk 0:04:12]}
14. Bxc3 {[%clk 0:03:52.9]} 14... f6 {[%clk 0:04:07.8]} 15. d4 {[%clk
0:03:50.7]} 15... Nd7 {[%clk 0:03:57.6]} 16. Bc4 {[%clk 0:03:45.1]} 16... Nb6
{[%clk 0:03:56.6]} 17. Be6 {[%clk 0:03:44.3]} 17... Nd5 {[%clk 0:03:38.8]} 18.
Bxd5 {[%clk 0:03:42.9]} 18... cxd5 {[%clk 0:03:37.9]} 19. O-O {[%clk 0:03:42.8]}
19... e6 {[%clk 0:03:24.3]} 20. Rfb1 {[%clk 0:03:38.8]} 20... Ra7 {[%clk
0:03:23.3]} 21. Bb4 {[%clk 0:03:29.7]} 21... Kd7 {[%clk 0:03:22.7]} 22. Bxf8
{[%clk 0:03:28.5]} 22... Rxf8 {[%clk 0:03:21.9]} 23. Rb4 {[%clk 0:03:28.2]}
23... Rfa8 {[%clk 0:03:20.8]} 24. Kf1 {[%clk 0:03:17.2]} 24... Kc6 {[%clk
0:03:11.1]} 25. Ke2 {[%clk 0:03:08.5]} 25... b5 {[%clk 0:03:10]} 26. Ne1 {[%clk
0:02:47.7]} 26... e5 {[%clk 0:03:06.8]} 27. Nc2 {[%clk 0:02:34.7]} 27... a3
{[%clk 0:02:57.6]} 28. Kd3 {[%clk 0:02:29]} 28... a2 {[%clk 0:02:53.7]} 29. Rb2
{[%clk 0:02:22]} 29... Kb6 {[%clk 0:02:22.6]} 30. dxe5 {[%clk 0:02:07.2]} 30...
fxe5 {[%clk 0:02:21.2]} 31. Nb4 {[%clk 0:02:06.9]} 31... Ra3+ {[%clk 0:02:20]}
32. Kd2 {[%clk 0:02:02.4]} 32... Kc5 {[%clk 0:02:09.5]} 33. Raxa2 {[%clk
0:01:52.7]} 33... Rxa2 {[%clk 0:02:03.3]} 34. Nxa2 {[%clk 0:01:52.6]} 34... d4
{[%clk 0:02:02.6]} 35. Rc2+ {[%clk 0:01:49.7]} 35... Kd5 {[%clk 0:01:56.1]} 36.
Nb4+ {[%clk 0:01:48.7]} 36... Ke4 {[%clk 0:01:55.6]} 37. f3+ {[%clk 0:01:48.2]}
37... Kf4 {[%clk 0:01:54.9]} 38. Nd3+ {[%clk 0:01:46.7]} 38... Kf5 {[%clk
0:01:52.1]} 39. Rb2 {[%clk 0:01:35.2]} 39... Ra5 {[%clk 0:01:48.1]} 40. Nf2
{[%clk 0:01:29.5]} 40... g5 {[%clk 0:01:39.6]} 41. Ne4 {[%clk 0:01:28.4]} 41...
h5 {[%clk 0:01:35.8]} 42. Nd6+ {[%clk 0:01:27.7]} 42... Kf4 {[%clk 0:01:33.2]}
43. Nxb5 {[%clk 0:01:23.7]} 43... g4 {[%clk 0:01:30.4]} 44. Ke2 {[%clk
0:00:57.9]} 44... gxf3+ {[%clk 0:01:21.3]} 45. gxf3 {[%clk 0:00:57.2]} 45... d3+
{[%clk 0:01:19.4]} 46. Kxd3 {[%clk 0:00:56.2]} 46... Kxf3 {[%clk 0:01:18.8]} 47.
Nc3 {[%clk 0:00:51.4]} 47... Ra3 {[%clk 0:01:14.1]} 48. Rb8 {[%clk 0:00:48.3]}
48... e4+ {[%clk 0:01:11.1]} 49. Kd4 {[%clk 0:00:47.7]} 49... Kg2 {[%clk
0:01:08.4]} 50. h4 {[%clk 0:00:43.8]} 50... Kg3 {[%clk 0:01:06.4]} 51. Rg8+
{[%clk 0:00:35.1]} 51... Kxh4 {[%clk 0:01:05.2]} 52. Nxe4 {[%clk 0:00:34.7]}
52... Ra4+ {[%clk 0:01:02.4]} 53. Ke5 {[%clk 0:00:34.2]} 53... Ra5+ {[%clk
0:01:00.9]} 54. Kf4 {[%clk 0:00:33.6]} 54... Ra7 {[%clk 0:00:54.6]} 55. Rg1
{[%clk 0:00:32.2]} 55... Rf7+ {[%clk 0:00:53.3]} 56. Ke3 {[%clk 0:00:31.8]}
56... Rf8 {[%clk 0:00:50.2]} 57. Nf2 {[%clk 0:00:26.8]} 57... Re8+ {[%clk
0:00:47.1]} 58. Kf3 {[%clk 0:00:26.3]} 58... Rf8+ {[%clk 0:00:46.4]} 59. Ke3
{[%clk 0:00:25.9]} 59... Re8+ {[%clk 0:00:45.8]} 60. Kf4 {[%clk 0:00:25.5]}
60... Rf8+ {[%clk 0:00:44.9]} 61. Ke3 {[%clk 0:00:25.1]} 1/2-1/2

[Event "Live Chess"]
[Site "Chess.com"]
[Date "2024.06.01"]
[Round "-"]
[White "PughmanChess"]
[Black "kylet1990"]
[Result "1-0"]
[WhiteElo "1379"]
[BlackElo "734"]
[TimeControl "300"]
[EndTime "14:17:48 PDT"]
[Termination "PughmanChess won by resignation"]

1. e4 {[%clk 0:04:56.1]} 1... c6 {[%clk 0:04:56.2]} 2. d4 {[%clk 0:04:54.4]}
2... d5 {[%clk 0:04:55.3]} 3. e5 {[%clk 0:04:53.1]} 3... Bf5 {[%clk 0:04:53.6]}
4. Bd3 {[%clk 0:04:49.1]} 4... Bxd3 {[%clk 0:04:52.1]} 5. Qxd3 {[%clk
0:04:48.8]} 5... e6 {[%clk 0:04:50.7]} 6. Nf3 {[%clk 0:04:47.8]} 6... c5 {[%clk
0:04:46.2]} 7. Qb5+ {[%clk 0:04:42.1]} 7... Nc6 {[%clk 0:04:44]} 8. dxc5 {[%clk
0:04:40.7]} 8... a6 {[%clk 0:04:35.4]} 9. Qxb7 {[%clk 0:04:38.3]} 9... Na5
{[%clk 0:04:28.6]} 10. Qb6 {[%clk 0:04:30.1]} 10... Nc4 {[%clk 0:04:14]} 11.
Qxd8+ {[%clk 0:04:28.2]} 11... Rxd8 {[%clk 0:04:12.6]} 12. b4 {[%clk 0:04:26.2]}
12... Ne7 {[%clk 0:04:07.2]} 13. Nbd2 {[%clk 0:04:24.2]} 13... Nf5 {[%clk
0:04:03.6]} 14. Nxc4 {[%clk 0:04:21.4]} 14... dxc4 {[%clk 0:04:02]} 15. c3
{[%clk 0:04:18.1]} 15... g6 {[%clk 0:03:57]} 16. O-O {[%clk 0:04:16.7]} 16...
Bg7 {[%clk 0:03:55.7]} 17. Re1 {[%clk 0:04:13.4]} 17... f6 {[%clk 0:03:48.6]}
18. exf6 {[%clk 0:04:11.8]} 18... Bxf6 {[%clk 0:03:46.5]} 19. Ng5 {[%clk
0:03:19.6]} 19... Bxc3 {[%clk 0:03:42.2]} 20. Rxe6+ {[%clk 0:03:12.6]} 20... Kd7
{[%clk 0:03:38.2]} 21. c6+ {[%clk 0:03:03.8]} 21... Kc7 {[%clk 0:03:33.9]} 22.
Bf4+ {[%clk 0:03:01.6]} 22... Kb6 {[%clk 0:03:31.2]} 23. c7+ {[%clk 0:02:54.7]}
23... Kb7 {[%clk 0:03:23.6]} 24. cxd8=N+ {[%clk 0:02:51.8]} 24... Rxd8 {[%clk
0:03:12.3]} 25. Rb1 {[%clk 0:02:50.3]} 25... Rd2 {[%clk 0:03:06.1]} 26. Bxd2
{[%clk 0:02:47.8]} 1-0